bitfinex-derivatives/quotes_SOLF0:USTF0_20250413
["timestamp","ask_amount","ask_price","bid_price","bid_amount"]
[1744523223849,30.8,130.11,130.04,7.6917]
[1744523224046,7.73971388,130.08,130.04,7.6917]
[1744523224248,7.73971388,130.08,130.03,10.22267646]
[1744523224449,30.8,130.07,130.03,10.22267646]
[1744523224748,30.8,130.06,130.03,10.22267646]
[1744523224949,30.8,130.06,130.01,10.22267646]
[1744523225147,30.8,130.06,130.03,7.6925]
[1744523225450,0.05663957,130.05,130.03,7.6925]
[1744523225645,0.05663957,130.05,130.01,7.6933]
[1744523225847,0.05663957,130.05,129.99,10.22267646]
[1744523226051,30.81663957,130.05,130.01,10.22267646]
[1744523226253,30.76,130.05,130.02,7.6928]
[1744523226455,0.05494704,130.04,130.01,10.22267646]
[1744523226847,0.05494704,130.04,130.03,7.6926]
[1744523227055,30.76,130.06,130.03,10.22267646]
[1744523227353,30.76,130.07,130.03,10.22267646]
[1744523227551,30.76,130.08,130.07,7.6902]
[1744523227742,30.76,130.08,130.03,10.22267646]
[1744523227942,30.76,130.08,130.06,7.6906]
[1744523228145,30.80843084,130.08,130.06,7.74720867]
[1744523228642,30.80843084,130.08,130.06,0.05660867]
[1744523229946,38.49823084,130.08,130.06,0.05660867]
[1744523230146,0.04843084,130.08,130.06,0.05660867]
[1744523230347,30.80843084,130.08,130.06,0.05660867]
[1744523230749,38.48843084,130.08,129.98,1.33815273]
[1744523230943,7.6933,130.02,129.98,7.6952]
[1744523231147,30.76,130.03,129.94,11.56142119]
[1744523231849,0.05056685,130.0,129.94,11.56142119]
[1744523232052,0.05056685,130.0,129.95,30.76]
[1744523232657,10.22267646,129.96,129.92,9.06595033]
[1744523232853,7.698,129.95,129.92,9.06595033]
[1744523233052,30.8286022,129.95,129.92,9.06595033]
[1744523233554,7.6986,129.93,129.92,9.06595033]
[1744523233856,7.6986,129.93,129.89,57.30117533]
[1744523234358,10.2745897,129.92,129.88,72.52760267]
[1744523235351,7.7009,129.89,129.88,72.52760267]
[1744523235554,30.78,129.91,129.88,72.52760267]
[1744523237052,38.4801,129.91,129.88,72.52760267]
[1744523237451,30.78,129.91,129.88,72.52760267]
[1744523237758,30.78,129.91,129.84,30.78]
[1744523238257,0.05351625,129.89,129.85,7.7031]
[1744523238557,0.05351625,129.89,129.84,30.78]
[1744523239355,16.50545242,129.89,129.81,36.9621]
[1744523239560,16.45193617,129.89,129.81,36.9621]
[1744523239760,0.05021458,129.86,129.81,36.9621]
[1744523239957,0.05021458,129.86,129.84,7.7034]
[1744523240362,30.78,129.91,129.81,36.9621]
[1744523240862,7.7004,129.9,129.81,36.9621]
[1744523241063,30.78,129.91,129.81,36.9621]
[1744523241462,0.04854971,129.87,129.85,0.05079965]
[1744523242865,7.7027,129.86,129.85,0.05079965]
[1744523244263,7.7039,129.84,129.8,7.7061]
[1744523244462,16.45193617,129.89,129.78,36.7656]
[1744523244661,16.45193617,129.89,129.78,38.10609806]
[1744523244962,16.45193617,129.89,129.82,7.7047]
[1744523245162,16.45193617,129.89,129.82,38.5047]
[1744523245363,0.05244512,129.87,129.82,30.8]
[1744523245565,7.75494512,129.87,129.82,38.5049]
[1744523246061,7.7027,129.86,129.82,38.5049]
[1744523246265,0.05244512,129.87,129.78,1.34049806]
[1744523246563,0.05298013,129.84,129.79,6.1809]
[1744523247766,0.05298013,129.84,129.82,7.7046]
[1744523247960,0.05298013,129.84,129.82,38.5046]
[1744523249571,0.05298013,129.84,129.82,30.8]
[1744523250260,0.05298013,129.84,129.83,7.7045]
[1744523250460,0.05298013,129.84,129.82,30.8]
[1744523250970,0.05298013,129.84,129.79,37.0009]
[1744523251468,7.7045,129.83,129.79,37.0009]
[1744523251881,7.7045,129.83,129.79,44.7074]
[1744523252070,7.7055,129.82,129.78,30.82]
[1744523252470,0.04899609,129.81,129.78,30.82]
[1744523252970,0.04899609,129.81,129.78,38.527]
[1744523253365,0.04899609,129.81,129.78,30.82]
[1744523253569,0.04899609,129.81,129.76,7.7085]
[1744523253770,7.7078,129.78,129.72,1.34080795]
[1744523254070,0.05773945,129.76,129.72,4.1733]
[1744523254567,0.05773945,129.76,129.71,30.82]
[1744523254865,0.05773945,129.76,129.71,32.8927]
[1744523255069,0.05773945,129.76,129.74,7.7097]
[1744523256867,0.05773945,129.76,129.71,2.0727]
[1744523257370,0.05773945,129.76,129.74,7.7095]
[1744523258267,0.05773945,129.76,129.72,30.8]
[1744523259168,7.7093,129.75,129.72,30.8]
[1744523259871,7.7093,129.75,129.72,38.5108]
[1744523260167,7.7093,129.75,129.72,30.8]
[1744523260371,7.7098,129.74,129.72,30.8]
[1744523260672,41.09829752,129.75,129.67,30.8]
[1744523260868,7.7115,129.72,129.67,30.8]
[1744523261075,7.77069406,129.72,129.68,7.7131]
[1744523261570,7.77069406,129.72,129.67,34.8402]
[1744523261771,7.77069406,129.72,129.67,36.9936]
[1744523263468,7.77069406,129.72,129.69,7.7127]
[1744523265979,7.7118,129.71,129.67,36.9936]
[1744523266169,0.05919406,129.72,129.67,36.9936]
[1744523266677,7.712,129.71,129.67,44.7072]
[1744523267672,7.712,129.71,129.67,38.5136]
[1744523267871,7.7123,129.7,129.67,38.5136]
[1744523269184,7.7119,129.71,129.68,7.7132]
[1744523269474,0.05919406,129.72,129.67,30.8]
[1744523269680,10.29829752,129.71,129.62,1.34199718]
[1744523269893,10.29829752,129.73,129.63,30.82]
[1744523270079,0.04880178,129.68,129.64,2.063]
[1744523270582,0.04880178,129.68,129.67,7.714]
[1744523270780,0.04880178,129.68,129.64,2.063]
[1744523271682,0.04880178,129.68,129.63,30.82]
[1744523271883,0.04880178,129.68,129.63,32.8499]
[1744523272183,0.04880178,129.68,129.66,7.7142]
[1744523273178,0.04880178,129.68,129.67,7.714]
[1744523273693,41.09829752,129.75,129.69,7.7124]
[1744523273888,41.09829752,129.75,129.68,4.094]
[1744523274593,41.09829752,129.75,129.69,7.7125]
[1744523274796,0.04979005,129.73,129.7,0.04978303]
[1744523275089,7.7116,129.71,129.7,0.04978303]
[1744523275793,7.7111,129.72,129.7,0.04978303]
[1744523275995,0.04979005,129.73,129.7,0.04978303]
[1744523276495,0.04979005,129.73,129.7,7.76158303]
[1744523276790,10.29829752,129.77,129.71,30.82]
[1744523276994,41.11829752,129.79,129.71,32.9157]
[1744523277191,10.29829752,129.79,129.71,32.9157]
[1744523277596,7.7065,129.8,129.76,7.7083]
[1744523277791,30.82,129.82,129.75,30.82]
[1744523277993,0.05781119,129.79,129.77,0.05479241]
[1744523278294,0.05781119,129.79,129.77,7.76239241]
[1744523278792,7.7053,129.82,129.78,7.7075]
[1744523278995,41.11829752,129.85,129.77,2.06839241]
[1744523279193,41.11829752,129.85,129.77,4.0335]
[1744523279993,0.05049177,129.82,129.8,0.05917837]
[1744523281186,0.05049177,129.82,129.8,30.87917837]
[1744523282591,7.7037,129.85,129.81,7.7057]
[1744523282792,41.11829752,129.88,129.8,30.82]
[1744523283496,7.7031,129.86,129.82,7.7051]
[1744523283697,0.05550377,129.85,129.83,0.0543673]
[1744523285597,7.7039,129.84,129.83,0.0543673]
[1744523286099,18.00219752,129.84,129.83,0.0543673]
[1744523286294,7.7053,129.82,129.8,30.82]
[1744523287296,7.75893105,129.82,129.8,30.87449913]
[1744523287492,0.05363105,129.82,129.8,30.87449913]
[1744523287890,610.62,129.92,129.8,30.87449913]
[1744523288101,7.7017,129.88,129.8,30.82]
[1744523288392,7.7017,129.88,129.83,7.7041]
[1744523288695,7.7017,129.88,129.8,30.82]
[1744523288890,7.7017,129.88,129.83,7.7039]
[1744523289090,0.05751759,129.85,129.84,30.78]
[1744523289298,10.29829752,129.91,129.84,34.859]
[1744523289592,7.7015,129.89,129.84,42.5624]
[1744523289797,0.05091949,129.89,129.86,0.04976163]
[1744523290096,7.7015,129.88,129.86,0.04976163]
[1744523290998,7.7021,129.87,129.86,0.04976163]
[1744523292407,0.05091949,129.89,129.86,0.04976163]
[1744523294094,7.702,129.88,129.86,0.04976163]
[1744523300006,0.05091949,129.89,129.86,0.04976163]
[1744523300802,7.7019,129.88,129.86,0.04976163]
[1744523302101,0.05091949,129.89,129.86,7.75236163]
[1744523302300,0.05091949,129.89,129.86,0.04976163]
[1744523302705,7.75191949,129.89,129.86,0.04976163]
[1744523303400,7.75191949,129.89,129.86,4.15696163]
[1744523303701,364.0,129.95,129.86,4.15696163]
[1744523303702,10.29829752,129.95,129.86,4.15696163]
[1744523303904,10.29829752,129.95,129.87,1.9765]
[1744523304606,10.29829752,129.95,129.87,9.6783]
[1744523304808,0.05769856,129.92,129.9,0.04991821]
[1744523305106,7.6997,129.91,129.9,0.04991821]
[1744523306407,10.29829752,129.91,129.85,30.78]
[1744523307408,7.7022,129.87,129.85,30.78]
[1744523307908,7.7022,129.87,129.85,30.83068495]
[1744523308708,7.7018,129.88,129.85,30.83068495]
[1744523308909,10.35749826,129.89,129.85,30.83068495]
[1744523309307,7.7016,129.88,129.85,30.83068495]
[1744523309506,10.35749826,129.89,129.85,30.83068495]
[1744523309807,7.7024,129.87,129.85,30.83068495]
[1744523310004,7.7024,129.87,129.85,0.05068495]
[1744523310709,7.702,129.88,129.85,0.05068495]
[1744523311009,10.35749826,129.89,129.85,0.05068495]
[1744523311402,7.7027,129.86,129.85,0.05068495]
[1744523311606,7.7027,129.86,129.81,2.0112]
[1744523311607,10.29829752,129.87,129.81,2.0112]
[1744523311806,10.29829752,129.87,129.8,1.9708]
[1744523312007,7.7046,129.83,129.8,1.9708]
[1744523312702,10.29829752,129.85,129.8,1.9708]
[1744523312907,0.05772775,129.83,129.8,1.9708]
[1744523313104,0.05772775,129.83,129.77,612.6043]
[1744523313105,7.7052,129.82,129.81,0.05112906]
[1744523313306,10.35602527,129.83,129.76,30.78]
[1744523313507,10.29829752,129.83,129.75,30.78]
[1744523314312,0.0502459,129.8,129.78,0.04933764]
[1744523315411,7.7566459,129.8,129.78,0.04933764]
[1744523316812,0.0502459,129.8,129.78,0.04933764]
[1744523317315,41.07829752,129.87,129.79,30.78]
[1744523317513,41.07829752,129.87,129.8,1.9546]
[1744523318212,30.78,129.87,129.8,1.9546]
[1744523318414,7.75795977,129.85,129.82,0.05235235]
[1744523322418,7.7041,129.84,129.82,0.05235235]
[1744523323214,7.75795977,129.85,129.82,0.05235235]
[1744523323620,0.05445977,129.85,129.82,0.05235235]
[1744523323918,30.76,129.9,129.83,30.76]
[1744523324314,7.7011,129.89,129.86,7.7023]
[1744523325019,7.75983602,129.89,129.86,7.75207458]
[1744523325420,7.75983602,129.89,129.86,0.04977458]
[1744523327623,7.75983602,129.89,129.86,7.75237458]
[1744523328122,0.05873602,129.89,129.87,7.7021]
[1744523328322,0.05873602,129.89,129.86,0.04977458]
[1744523328723,0.05873602,129.89,129.86,7.75227458]
[1744523329319,7.75973602,129.89,129.86,7.75227458]
[1744523330624,7.7016,129.88,129.86,0.04977458]
[1744523331123,7.75993602,129.89,129.86,0.04977458]
[1744523332425,0.05873602,129.89,129.86,0.04977458]
[1744523332820,0.05873602,129.89,129.86,2.05107458]
[1744523333119,0.05873602,129.89,129.87,7.7018]
[1744523333525,0.05873602,129.89,129.86,2.05107458]
[1744523333728,0.05873602,129.89,129.87,7.7021]
[1744523334929,0.05873602,129.89,129.88,7.7015]
[1744523337827,0.05873602,129.89,129.87,38.4619]
[1744523338034,0.05873602,129.89,129.86,2.05107458]
[1744523339034,7.7021,129.87,129.86,2.05107458]
[1744523339434,7.7016,129.88,129.86,2.05107458]
[1744523341231,7.7021,129.87,129.86,0.04977458]
[1744523341533,10.29829752,129.87,129.81,32.7546]
[1744523341735,10.29829752,129.83,129.77,32.8059]
[1744523341930,41.03829752,129.83,129.77,32.8059]
[1744523342333,7.706,129.81,129.77,40.5139]
[1744523342531,0.05773917,129.81,129.79,0.04880675]
[1744523344138,7.7063,129.8,129.79,0.04880675]
[1744523344338,0.05773917,129.81,129.79,0.04880675]
[1744523344635,0.05773917,129.81,129.79,7.75550675]
[1744523345137,0.05773917,129.81,129.79,0.04880675]
[1744523346842,7.7063,129.8,129.79,0.04880675]
[1744523348245,18.00459752,129.8,129.79,0.04880675]
[1744523348447,10.29829752,129.8,129.74,32.8259]
[1744523349638,0.05754275,129.78,129.76,0.05730751]
[1744523350157,0.05754275,129.78,129.77,7.708]
[1744523350535,7.7056,129.82,129.77,7.708]
[1744523351345,7.7057,129.81,129.77,7.708]
[1744523351545,0.05112396,129.8,129.77,7.708]
[1744523351746,0.05112396,129.8,129.78,0.04880298]
[1744523351947,7.75742396,129.8,129.78,0.04880298]
[1744523352349,0.05112396,129.8,129.78,0.04880298]
[1744523352648,0.05112396,129.8,129.78,7.75620298]
[1744523353652,0.05112396,129.8,129.78,0.04880298]
[1744523356150,7.75742396,129.8,129.78,0.04880298]
[1744523356651,0.05112396,129.8,129.78,7.75620298]
[1744523356852,30.74,129.87,129.78,30.78880298]
[1744523357046,364.0,129.91,129.79,2.015]
[1744523357047,30.74,129.89,129.79,2.015]
[1744523357450,30.74,129.89,129.8,12.26209752]
[1744523357748,7.7027,129.86,129.83,7.7042]
[1744523357950,7.75928004,129.86,129.83,7.76212822]
[1744523358254,0.05658004,129.86,129.83,0.05792822]
[1744523358454,7.75958004,129.86,129.83,0.05792822]
[1744523359856,0.05658004,129.86,129.83,0.05792822]
[1744523361249,0.05658004,129.86,129.76,30.74]
[1744523361250,10.29829752,129.84,129.76,30.74]
[1744523361651,41.03829752,129.88,129.76,41.03829752]
[1744523361957,41.03829752,129.88,129.8,7.7059]
[1744523362151,41.03829752,129.88,129.8,38.4459]
[1744523362457,7.76024202,129.85,129.83,0.05456356]
[1744523362755,0.05644202,129.85,129.83,0.05456356]
[1744523363660,7.7039,129.84,129.83,0.05456356]
[1744523370761,7.7054,129.82,129.78,7.7072]
[1744523371259,7.7057,129.81,129.78,7.7072]
[1744523371460,7.7057,129.81,129.77,40.4047]
[1744523371760,0.05243699,129.8,129.78,0.04930803]
[1744523372156,0.05243699,129.8,129.78,7.75670803]
[1744523373165,0.05243699,129.8,129.78,0.04930803]
[1744523373863,0.05243699,129.8,129.78,7.75640803]
[1744523374061,0.05243699,129.8,129.78,0.04930803]
[1744523374766,10.29829752,129.86,129.78,0.04930803]
[1744523374965,7.7044,129.84,129.8,7.7059]
[1744523375259,10.29829752,129.86,129.77,32.6969]
[1744523375656,7.7048,129.83,129.77,32.6969]
[1744523375855,7.75339237,129.83,129.8,0.05719259]
[1744523377265,7.75339237,129.83,129.8,7.76319259]
[1744523381370,0.04859237,129.83,129.8,7.76319259]
[1744523381969,7.75309237,129.83,129.8,7.76319259]
[1744523384066,0.04859237,129.83,129.8,0.05719259]
[1744523384272,6.58487957,129.9,129.82,6.58487957]
[1744523384472,6.58487957,129.9,129.83,4.2272]
[1744523384665,6.58487957,129.9,129.84,6.58487957]
[1744523385070,7.7019,129.88,129.85,7.703]
[1744523385371,7.7019,129.88,129.85,7.75992306]
[1744523385372,7.75599928,129.88,129.85,7.75992306]
[1744523385671,0.05409928,129.88,129.85,7.75992306]
[1744523386674,7.75569928,129.88,129.85,0.05692306]
[1744523387975,7.75569928,129.88,129.85,7.76012306]
[1744523388865,7.75569928,129.88,129.85,0.05692306]
[1744523389475,0.05409928,129.88,129.85,0.05692306]
[1744523390275,0.05409928,129.88,129.86,7.7027]
[1744523392076,0.05409928,129.88,129.85,38.45992306]
[1744523393479,7.75569928,129.88,129.85,30.75692306]
[1744523394174,0.05409928,129.88,129.85,38.46012306]
[1744523394378,0.05409928,129.88,129.85,30.75692306]
[1744523396279,7.7023,129.87,129.85,30.75692306]
[1744523396575,0.05409928,129.88,129.85,30.75692306]
[1744523396781,0.05409928,129.88,129.85,0.05692306]
[1744523397181,7.7027,129.86,129.85,0.05692306]
[1744523397478,10.28228338,129.87,129.79,30.7]
[1744523398080,7.7048,129.83,129.8,7.706]
[1744523398284,10.28228338,129.87,129.79,30.7]
[1744523398478,0.05204711,129.83,129.8,0.05568162]
[1744523399282,7.7052,129.82,129.8,0.05568162]
[1744523399685,0.05204711,129.83,129.8,0.05568162]
[1744523400585,7.7057,129.81,129.8,0.05568162]
[1744523405583,0.05204711,129.83,129.8,0.05568162]
[1744523406086,0.05204711,129.83,129.8,30.75568162]
[1744523406286,0.05204711,129.83,129.81,7.7053]
[1744523407190,0.05204711,129.83,129.8,38.46178162]
[1744523407488,0.05204711,129.83,129.8,30.75568162]
[1744523407688,7.7057,129.81,129.8,30.75568162]
[1744523407883,6.58504433,129.82,129.75,30.7]
[1744523408187,7.709,129.76,129.74,6.2057]
[1744523408391,6.58504433,129.77,129.74,6.2057]
[1744523408687,6.58504433,129.76,129.74,6.2057]
[1744523409082,6.64028494,129.76,129.74,6.26391839]
[1744523409284,0.05524061,129.76,129.74,6.26391839]
[1744523410786,0.05524061,129.76,129.75,7.7092]
[1744523411286,0.05524061,129.76,129.74,13.97351839]
[1744523411487,0.05524061,129.76,129.74,2.12541839]
[1744523411983,0.05524061,129.76,129.74,9.83511839]
[1744523413187,0.05524061,129.76,129.74,2.12541839]
[1744523414090,7.76424061,129.76,129.74,2.12541839]
[1744523414791,7.7092,129.75,129.74,0.05821839]
[1744523416391,7.7101,129.74,129.7,9.8361]
[1744523416688,10.3009629,129.77,129.69,34.621]
[1744523416890,7.7084,129.77,129.7,1.9814]
[1744523417092,40.9809629,129.79,129.7,1.9814]
[1744523417489,7.76229382,129.76,129.73,0.04888805]
[1744523417991,0.05329382,129.76,129.73,7.75928805]
[1744523419195,7.76229382,129.76,129.73,0.04888805]
[1744523419393,0.05329382,129.76,129.73,30.72888805]
[1744523419793,0.05329382,129.76,129.73,38.43898805]
[1744523420385,7.76199382,129.76,129.73,38.43898805]
[1744523420794,0.05329382,129.76,129.73,38.43898805]
[1744523423497,0.05329382,129.76,129.74,7.7098]
[1744523424294,0.05329382,129.76,129.73,30.72888805]
[1744523424498,0.05329382,129.76,129.73,38.43908805]
[1744523426603,10.3009629,129.81,129.73,30.72888805]
[1744523426900,30.68,129.82,129.74,3.9444]
[1744523427101,7.7066,129.8,129.76,7.7083]
[1744523427400,30.68,129.82,129.76,7.7083]
[1744523427702,7.7069,129.79,129.78,0.04903828]
[1744523428702,0.05702977,129.8,129.78,0.04903828]
[1744523429596,0.05702977,129.8,129.79,7.7069]
[1744523430195,374.3009629,129.87,129.78,0.04903828]
[1744523430400,374.3009629,129.87,129.77,40.9809629]
[1744523430401,10.3009629,129.87,129.77,40.9809629]
[1744523431407,0.04964396,129.83,129.81,0.05894477]
[1744523431606,10.3009629,129.89,129.84,7.7038]
[1744523431802,40.9809629,129.91,129.82,30.68]
[1744523432305,7.701,129.89,129.85,7.703]
[1744523432709,0.05565634,129.88,129.86,0.05478273]
[1744523434014,7.75725634,129.88,129.86,0.05478273]
[1744523434215,0.05565634,129.88,129.86,0.05478273]
[1744523435616,40.9809629,129.95,129.86,30.73478273]
[1744523435810,10.3009629,129.95,129.87,4.2172]
[1744523436009,10.3009629,129.95,129.87,11.9189]
[1744523436610,7.6997,129.92,129.87,11.9189]
[1744523436810,7.74881809,129.92,129.9,0.04899556]
[1744523437316,7.6997,129.91,129.9,0.04899556]
[1744523437516,18.0006629,129.91,129.9,0.04899556]
[1744523439616,7.6997,129.91,129.9,0.04899556]
[1744523439817,0.04911809,129.92,129.9,0.04899556]
[1744523442118,7.6997,129.91,129.9,0.04899556]
[1744523452328,7.7021,129.87,129.86,30.68]
[1744523454330,10.3009629,129.87,129.81,30.64]
[1744523454629,10.3009629,129.87,129.8,30.64]
[1744523455423,0.04988884,129.85,129.82,0.05820054]
[1744523455827,7.7045,129.83,129.82,0.05820054]
[1744523465343,7.7041,129.84,129.82,0.05820054]
[1744523466140,7.7045,129.83,129.82,0.05820054]
[1744523466841,7.7041,129.84,129.82,0.05820054]
[1744523467138,6.5846805,129.83,129.82,0.05820054]
[1744523467341,7.7066,129.8,129.76,11.9955]
[1744523467942,7.7069,129.79,129.76,4.2873]
[1744523468441,7.75651477,129.79,129.76,4.34139705]
[1744523468642,7.7075,129.78,129.76,4.34139705]
[1744523469452,7.708,129.77,129.76,4.34139705]
[1744523469641,7.708,129.77,129.76,0.05409705]
[1744523470242,7.7077,129.78,129.76,0.05409705]
[1744523473745,6.63429527,129.79,129.76,0.05409705]
[1744523474640,7.7078,129.78,129.76,0.05409705]
[1744523477348,0.04961477,129.79,129.77,7.708]
[1744523477747,0.04961477,129.79,129.76,30.67409705]
[1744523478046,7.7075,129.78,129.76,30.67409705]
[1744523478648,6.63429527,129.79,129.76,30.67409705]
[1744523479356,7.7079,129.78,129.76,30.67409705]
[1744523479651,7.7079,129.78,129.76,0.05409705]
[1744523482850,6.63429527,129.79,129.76,0.05409705]
[1744523483151,6.63429527,129.79,129.76,7.76239705]
[1744523483650,6.63429527,129.79,129.76,0.05409705]
[1744523483951,14.34119527,129.79,129.76,0.05409705]
[1744523484847,14.34119527,129.79,129.76,7.76249705]
[1744523485851,7.75651477,129.79,129.76,7.76249705]
[1744523486150,7.75651477,129.79,129.76,0.05409705]
[1744523487852,7.75651477,129.79,129.76,7.76269705]
[1744523490151,7.75651477,129.79,129.77,7.708]
[1744523491352,7.75651477,129.79,129.76,7.76249705]
[1744523493654,0.04961477,129.79,129.76,7.76249705]
[1744523496056,0.04961477,129.79,129.76,6.63877755]
[1744523496356,6.5846805,129.82,129.77,30.62]
[1744523496557,14.2887805,129.84,129.8,7.7059]
[1744523496761,14.2887805,129.84,129.78,10.8776805]
[1744523496961,14.2887805,129.84,129.8,7.7059]
[1744523497462,0.05473605,129.83,129.81,0.0540098]
[1744523497763,0.05473605,129.83,129.81,7.7595098]
[1744523498061,72.0218651,129.88,129.82,37.2046805]
[1744523498253,79.7234651,129.88,129.85,7.7029]
[1744523498664,6.5846805,129.87,129.85,7.7029]
[1744523498964,79.7234651,129.88,129.85,7.7029]
[1744523499163,79.7234651,129.88,129.85,7.75311628]
[1744523499164,0.05534101,129.87,129.85,7.75311628]
[1744523503965,0.05534101,129.87,129.85,0.05021628]
[1744523504168,6.64002151,129.87,129.85,0.05021628]
[1744523505272,7.7027,129.86,129.85,0.05021628]
[1744523511977,14.34232151,129.87,129.85,0.05021628]
[1744523512166,6.64002151,129.87,129.85,0.05021628]
[1744523513171,30.56,129.86,129.79,32.6583]
[1744523513375,6.5846805,129.82,129.79,32.6583]
[1744523513778,14.2897805,129.82,129.79,32.6583]
[1744523514278,6.5846805,129.8,129.79,30.60929507]
[1744523514480,6.5846805,129.8,129.79,0.04929507]
[1744523514973,14.2909805,129.8,129.79,0.04929507]
[1744523515479,6.63954473,129.82,129.79,0.04929507]
[1744523516178,14.34514473,129.82,129.79,0.04929507]
[1744523517278,7.7057,129.81,129.79,0.04929507]
[1744523519275,7.7063,129.8,129.79,0.04929507]
[1744523519580,6.5846805,129.81,129.79,0.04929507]
[1744523519880,0.05486423,129.82,129.79,0.04929507]
[1744523520379,7.706,129.81,129.79,0.04929507]
[1744523520978,6.5846805,129.81,129.73,30.58]
[1744523521179,6.5846805,129.81,129.76,7.7083]
[1744523521579,7.7066,129.8,129.76,7.7083]
[1744523521976,14.2901805,129.82,129.76,6.5846805]
[1744523522182,0.0582387,129.79,129.78,6.5846805]
[1744523522480,0.05284563,129.8,129.78,6.5846805]
[1744523522676,6.5846805,129.84,129.78,6.5846805]
[1744523522983,6.5846805,129.86,129.78,0.04993656]
[1744523523279,6.5846805,129.84,129.79,2.1386]
[1744523523481,6.5846805,129.86,129.8,6.5846805]
[1744523523780,0.05518366,129.84,129.83,7.7044]
[1744523524574,0.05518366,129.84,129.82,7.76030758]
[1744523525485,0.05518366,129.84,129.82,0.05550758]
[1744523526378,7.7045,129.83,129.82,0.05550758]
[1744523531885,7.75928366,129.84,129.82,0.05550758]
[1744523533686,7.7045,129.83,129.82,0.05550758]
[1744523534984,7.7065,129.8,129.78,30.58]
[1744523535481,7.7065,129.8,129.73,12.40435876]
[1744523535482,7.7076,129.78,129.73,12.40435876]
[1744523535680,10.28535876,129.79,129.72,32.5042]
[1744523535985,10.28535876,129.77,129.72,32.5042]
[1744523536186,10.33814747,129.77,129.74,0.05316514]
[1744523536383,7.7086,129.76,129.74,0.05316514]
[1744523536783,7.76108871,129.77,129.74,0.05316514]
[1744523537186,0.05278871,129.77,129.74,0.05316514]
[1744523537888,0.05278871,129.77,129.74,7.76266514]
[1744523538077,0.05278871,129.77,129.74,0.05316514]
[1744523538689,7.709,129.76,129.74,0.05316514]
[1744523540689,7.76108871,129.77,129.74,0.05316514]
[1744523540982,0.05278871,129.77,129.74,0.05316514]
[1744523541389,0.05278871,129.77,129.75,7.7089]
[1744523541686,0.05278871,129.77,129.74,0.05316514]
[1744523541887,0.05278871,129.77,129.74,7.76256514]
[1744523542787,0.05278871,129.77,129.74,0.05316514]
[1744523543388,0.05278871,129.77,129.75,7.7088]
[1744523546691,0.05278871,129.77,129.74,7.76276514]
[1744523546881,0.05278871,129.77,129.74,0.05316514]
[1744523548090,7.709,129.76,129.74,0.05316514]
[1744523548893,7.7092,129.75,129.74,0.05316514]
[1744523550893,7.7103,129.74,129.7,7.7121]
[1744523551691,7.7095,129.75,129.71,7.7114]
[1744523551893,0.05843734,129.73,129.71,7.76325765]
[1744523552692,7.7087,129.76,129.72,7.711]
[1744523552989,7.7087,129.76,129.71,30.59185765]
[1744523553693,0.05162154,129.75,129.72,7.7109]
[1744523553897,10.28535876,129.8,129.71,30.59185765]
[1744523554192,32.5685,129.81,129.74,7.7094]
[1744523554395,7.7075,129.78,129.74,7.7094]
[1744523554891,7.7075,129.78,129.71,40.82535876]
[1744523555197,0.05287091,129.77,129.75,7.76028131]
[1744523556196,0.05287091,129.77,129.75,0.05108131]
[1744523556997,7.76127091,129.77,129.75,0.05108131]
[1744523559300,7.7086,129.76,129.75,0.05108131]
[1744523570211,17.99395876,129.76,129.75,0.05108131]
[1744523572113,7.7086,129.76,129.75,0.05108131]
[1744523573413,38.28117091,129.77,129.75,0.05108131]
[1744523573812,30.57287091,129.77,129.75,0.05108131]
[1744523574614,7.7086,129.76,129.75,0.05108131]
[1744523575317,14.30212619,129.76,129.75,0.05108131]
[1744523580622,6.59352619,129.76,129.75,0.05108131]
[1744523580824,7.76107091,129.77,129.75,0.05108131]
[1744523582523,0.05287091,129.77,129.75,0.05108131]
[1744523584329,0.05287091,129.77,129.75,7.75998131]
[1744523584825,0.05287091,129.77,129.76,7.7086]
[1744523585019,6.59352619,129.79,129.76,7.7086]
[1744523585224,6.59352619,129.81,129.75,30.57108131]
[1744523585525,14.29952619,129.81,129.77,7.7077]
[1744523586230,0.05449653,129.8,129.78,0.0593305]
[1744523586428,111.5899505,129.85,129.78,0.0593305]
[1744523586618,111.5899505,129.85,129.78,6.65285669]
[1744523586619,6.59352619,129.84,129.78,6.65285669]
[1744523586822,6.59352619,129.84,129.79,32.567]
[1744523587024,6.59352619,129.84,129.79,34.6955]